Cogmind - Beta 13 @@@ ROGUE MODE // 2024.04.01 @ 20:40:33 Player: AndK Result: Destroyed by G-47 Trooper with Particle Gun Performance ------------- Evolutions (2) 1000 Regions Visited (4) 800 Robots Destroyed (51) 255 Value Destroyed (1125) 1125 Prototype IDs (4) 80 Alien Tech Used (0) 0 Bonus (18) 18 TOTAL SCORE: 3278 Bonus ------- High Alert Combat Kills 18 Cogmind --------- Core Integrity 0/550 Matter 176/400 Energy 92/160 System Corruption 45% Temperature Warning (370) Movement Treading (160) Location -8/Storage Parts ------- > --- POWER (2) -------- Light Nuclear Core > --- PROPULSION (2) --- Light Treads Light Treads > --- UTILITY (3) ------ Improved Heat Sink Medium Matter Pod Light Armor Plating (fused) > --- WEAPON (4) ------- Heavy Particle Gun Heavy Particle Gun Heavy Particle Gun Heavy Particle Gun > --- INVENTORY (5) ---- Beam Rifle Heavy Particle Gun Heavy Assault Rifle Advanced EMP Blaster Advanced EMP Blaster Peak State ------------ > --- POWER ------------ Light Nuclear Core > --- PROPULSION ------- Light Treads Light Treads > --- UTILITY ---------- Improved Heat Sink Medium Matter Pod Light Armor Plating > --- WEAPON ----------- Heavy Particle Gun Heavy Particle Gun Heavy Particle Gun Heavy Particle Gun > --- INVENTORY -------- Beam Rifle Heavy Particle Gun Heavy Assault Rifle Advanced EMP Blaster Advanced EMP Blaster [Rating: 27] Favorites ----------- Power Ion Engine Engine Ion Engine Power Core Light Nuclear Core Propulsion Light Treads Treads Light Treads Leg Aluminum Leg Utility Small Storage Unit Device Cryofiber Web Storage Small Storage Unit Protection Improved Light Armor Plating Weapon Flak Cannon Energy Gun EM Pulse Gun Ballistic Gun Light Assault Rifle Ballistic Cannon Flak Cannon Launcher Improved Grenade Launcher Build | -11 -10 -9 -8 -8 ------- Run | Yrd Mat Mat Mat Sto Slots Evolved 4 | . . 2 2 . Power 1 | . . 1 . . Propulsion . | . . . . . Utility 1 | . . 1 . . Weapon 2 | . . . 2 . Parts Attached 57 | 6 6 11 15 19 Power 5 | 1 . 1 2 1 Engine 4 | 1 . 1 2 . Core 1 | . . . . 1 Reactor . | . . . . . Propulsion 9 | 2 1 2 1 3 Treads 6 | 2 1 . . 3 Leg 3 | . . 2 1 . Wheel . | . . . . . Hover . | . . . . . Flight . | . . . . . Utility 8 | 1 1 2 . 4 Device 3 | . . 1 . 2 Storage 3 | 1 1 . . 1 Processor . | . . . . . Hackware . | . . . . . Protection 2 | . . 1 . 1 Artifact . | . . . . . Weapon 35 | 2 4 6 12 11 Energy Gun 10 | 2 1 . 2 5 Energy Cannon . | . . . . . Ballistic Gun 7 | . 3 3 . 1 Ballistic Cannon 8 | . . . 8 . Launcher 10 | . . 3 2 5 Special Weapon . | . . . . . Impact Weapon . | . . . . . Slashing Weapon . | . . . . . Piercing Weapon . | . . . . . Special Melee Weapon . | . . . . . Unidentified Prototypes 2 | . . . . 2 Corrupted Parts 10 | . . . . 10 System Corruption 44 | . . . . 44 Parts Lost 20 | . 3 1 15 1 Power 4 | . . . 4 . Propulsion 2 | . . . 2 . Utility 4 | . . . 3 1 Weapon 10 | . 3 1 6 . Highest Loss Streak 14 | . 2 1 14 1 To Critical Strikes . | . . . . . Average Slot Usage (%) 83 | . 94 98 88 42 Engine 13 | . 14 22 16 . Treads 11 | . 27 3 . 9 Leg 7 | . . 18 14 . Device 4 | . . 9 8 3 Storage 13 | . 24 13 8 2 Protection 4 | . . 9 7 3 Energy Gun 6 | . 16 . 3 4 Ballistic Gun 8 | . 10 12 2 3 Ballistic Cannon 4 | . . . 21 1 Launcher 5 | . . 9 4 11 Naked Turns 1 | . . . . 1 Heaviest Build 43 | 14 16 31 43 24 Greatest Support 40 | 40 40 40 25 40 Greatest Overweight (x) 8 | . . 1 8 7 Average Overweight (x) . | . . . 1 1 Largest Inventory Capacity 8 | 8 8 8 8 5 Average Capacity 7 | 7 8 8 7 5 Most Carried 8 | 5 8 8 7 5 Average Carried 5 | 2 7 7 6 2 Final Capacity 8 | 8 8 8 5 5 Final Carried 8 | 4 8 7 . 5 Class Distribution -------------------- 71% | Mutant 14% | Tank 6% | Scavenger-Tank 4% | Gunner Dominant Class ---------------- Mutant | -10/Materials Mutant | -9/Materials Tank | -8/Materials Mutant | -8/Storage Resources | -11 -10 -9 -8 -8 ----------- Run | Yrd Mat Mat Mat Sto Matter Collected 1173 | 185 239 81 332 336 Remotely . | . . . . . Salvage Created 1165 | . 199 282 318 366 Parts 92 | . 14 38 16 24 Haulers Intercepted . | . . . . . Recyclers Shooed 1 | . . . 1 . Parts Field Recycled . | . . . . . Retrieved Matter . | . . . . . Parts Self-Destructed . | . . . . . Prevented . | . . . . . Kills | -11 -10 -9 -8 -8 ------- Run | Yrd Mat Mat Mat Sto Combat Hostiles Destroyed 39 | . 7 17 6 9 Guns 8 | . 4 3 . 1 Cannons 5 | . . . 5 . AOE 26 | . 3 14 1 8 Classes Destroyed 9 | . 2 4 2 1 Worker 3 | . . 1 . 2 Tunneler 1 | . . 1 . . Recycler 3 | . . . 3 . Operator 1 | . . . . 1 Watcher 4 | . . 3 1 . Swarmer 21 | . 3 11 3 4 Grunt 13 | . 4 5 1 3 Sentry 4 | . . 1 1 2 Hunter 1 | . . . 1 . Best Kill Streak 11 | . 3 11 4 6 Combat Bots Only 8 | . 3 8 3 4 Max Kills in Single Turn 5 | . 3 5 2 4 Gunslinging . | . . . . . Exploded 4 | . 3 4 1 3 Melee . | . . . . . Uniques/NPCs Destroyed . | . . . . . Combat | -11 -10 -9 -8 -8 -------- Run | Yrd Mat Mat Mat Sto Hostile Shots Fired 309 | . 34 60 171 44 Missed 82 | . 10 17 45 10 Damage Taken 3383 | . 420 483 1946 534 Core 687 | . 33 98 421 135 Absorbed by Shields . | . . . . . Core Remaining (%) 87 | 100 86 75 . . Volleys Fired 81 | . 25 25 17 14 Largest 4 | . 2 2 4 4 Hottest 220 | . 90 72 176 220 Shots Fired 181 | . 49 38 60 34 Gun 108 | . 49 28 7 24 Cannon 50 | . . . 50 . Launcher 23 | . . 10 3 10 Special . | . . . . . Kinetic 116 | . 28 28 53 7 Thermal 31 | . 10 . 4 17 Explosive 13 | . . 10 3 . Electromagnetic 21 | . 11 . . 10 Robot Hit Streak 9 | . 9 3 4 2 Robot Miss Streak 23 | . 3 3 23 4 Penetration Max . | . . . . . Secondary Targets . | . . . . . Shots Hit Robots 79 | . 19 17 32 11 Core Hits 92 | . 13 23 39 17 Critical Kills . | . . . . . Critical Parts Destroyed . | . . . . . Critical Strikes . | . . . . . Melee Attacks . | . . . . . Impact . | . . . . . Slashing . | . . . . . Piercing . | . . . . . Sneak Attacks . | . . . . . Combat Hostiles . | . . . . . Follow-up Attacks . | . . . . . Damage Inflicted 3181 | . 481 1430 692 578 Guns 516 | . 201 155 20 140 Cannons 508 | . . . 508 . Explosions 2138 | . 280 1275 145 438 Melee . | . . . . . Ramming 19 | . . . 19 . Kinetic 796 | . 94 155 516 31 Thermal 280 | . 62 . 12 206 Explosive 1700 | . 280 1275 145 . Electromagnetic 386 | . 45 . . 341 Impact . | . . . . . Slashing . | . . . . . Piercing . | . . . . . Highest Corruption 45 | . . . . 45 Average Corruption 24 | . . . . 24 Corruption Purged . | . . . . . Corruption Blocked . | . . . . . Effects 13 | . . . . 13 Message Errors 2 | . . . . 2 Matter Fused 3 | . . . . 3 Heat Flow Errors 1 | . . . . 1 Energy Discharges 2 | . . . . 2 Parts Fused 1 | . . . . 1 Data Loss (minor) 2 | . . . . 2 Misdirections 1 | . . . . 1 Weapon Failures 1 | . . . . 1 Overload Shots . | . . . . . Overflow Damage 72 | . 1 17 54 . Projectiles . | . . . . . Explosions 72 | . 1 17 54 . Melee . | . . . . . Knockbacks 15 | . . . 15 . Impact . | . . . . . Kinetic 15 | . . . 15 . Secondary . | . . . . . Self-Inflicted Damage 392 | . 101 83 83 125 Shots 11 | . 1 2 2 6 Rammed . | . . . . . Targets Rammed 13 | . . . 13 . Kicked 13 | . . . 13 . Crushed . | . . . . . Highest Temperature 361 | . 136 10 357 361 Average Temperature 92 | . 37 4 144 89 Received Heat Transfer 1509 | . 159 90 1116 144 Siege Activations . | . . . . . Robots Corrupted . | . . . . . Combat Hostiles . | . . . . . Parts Fried . | . . . . . Impact Corruptions . | . . . . . Robots Melted . | . . . . . Combat Hostiles . | . . . . . Parts Melted 1 | . . . . 1 Heat Transferred 682 | . 185 . 25 472 Parts Sabotaged . | . . . . . Parts Stolen . | . . . . . Parts Stripped . | . . . . . Power Chain Reactions 3 | . . . . 3 Alert | -11 -10 -9 -8 -8 ------- Run | Yrd Mat Mat Mat Sto Peak Influence 544 | . 222 544 394 444 Initial 144 | . . 27 144 136 Average 183 | . 69 239 273 230 Maximum Alert Level 2 | . 1 2 1 2 Low Security (%) 57 | 100 94 47 16 43 Level 1 36 | . 5 37 83 46 Level 2 6 | . . 14 . 10 Level 3 . | . . . . . Level 4 . | . . . . . Level 5 . | . . . . . High Security . | . . . . . Max Security . | . . . . . Squads Dispatched 6 | . 2 . 2 2 Investigation 2 | . . . 1 1 Extermination . | . . . . . Reinforcement 4 | . 2 . 1 1 Assault . | . . . . . Garrison . | . . . . . Intercept . | . . . . . Searches Triggered . | . . . . . Construction Impeded 1 | . . . . 1 Haulers Reinforced . | . . . . . Active Scanning Responses . | . . . . . Cargo Convoy Interrupts . | . . . . . Stealth | -11 -10 -9 -8 -8 --------- Run | Yrd Mat Mat Mat Sto Distress Signals 3 | . 1 1 1 . Communications Jammed . | . . . . . Distress Signals . | . . . . . Times Spotted 74 | . 16 21 25 12 Peak Tracking Total 10 | . 4 9 10 4 Tactical Retreats 4 | . 2 . 2 . Traps | -11 -10 -9 -8 -8 ------- Run | Yrd Mat Mat Mat Sto Traps Triggered 1 | . 1 . . . Indirectly . | . . . . . Trap Hack Attempts . | . . . . . Triggered . | . . . . . Disarmed 6 | . . . 6 . Reprogrammed . | . . . . . Reused . | . . . . . Traps Extracted . | . . . . . Installed . | . . . . . Triggered . | . . . . . Machines | -11 -10 -9 -8 -8 ---------- Run | Yrd Mat Mat Mat Sto Machines Disabled 3 | . 1 . . 2 Max in Single Turn 1 | . 1 . . 1 Machines Repaired . | . . . . . Machines Dismantled . | . . . . . Machines Sabotaged . | . . . . . Overloaded Fab Kills . | . . . . . Hacking | -11 -10 -9 -8 -8 --------- Run | Yrd Mat Mat Mat Sto Machines Accessed 8 | . 3 2 1 2 Terminals 8 | . 3 2 1 2 Fabricators . | . . . . . Repair Stations . | . . . . . Recycling Units . | . . . . . Scanalyzers . | . . . . . Garrison Access . | . . . . . Total Hacks 18 | . 6 3 3 6 Successful 7 | . 3 2 1 1 Failed 11 | . 3 1 2 5 Catastrophic 3 | . 2 . . 1 Database Lockouts . | . . . . . Manual . | . . . . . Terminals 18 | . 6 3 3 6 Fabricators . | . . . . . Repair Stations . | . . . . . Recycling Units . | . . . . . Scanalyzers . | . . . . . Garrison Access . | . . . . . Terminal Hacks 7 | . 3 2 1 1 Prototype ID Bank 1 | . . 1 . . Open Door 1 | . . . . 1 Alert Level 1 | . . 1 . . Locate Traps 2 | . 2 . . . Disarm Traps 1 | . . . 1 . Transport Status 1 | . 1 . . . Fabricator Hacks . | . . . . . Repair Station Hacks . | . . . . . Recycling Unit Hacks . | . . . . . Scanalyzer . | . . . . . Garrison Access Hacks . | . . . . . Unauthorized Hacks . | . . . . . Terminals . | . . . . . Fabricators . | . . . . . Repair Stations . | . . . . . Recycling Units . | . . . . . Scanalyzers . | . . . . . Garrison Access . | . . . . . Data Cores Recovered . | . . . . . Used . | . . . . . Hacking Detections 5 | . 2 . 1 2 Full Trace Events 2 | . . . 1 1 Feedback Events . | . . . . . Feedback Blocked . | . . . . . Robot Schematics Acquired . | . . . . . Robots Built . | . . . . . Authchips . | . . . . . Time . | . . . . . Total Robot Build Rating . | . . . . . Part Schematics Acquired . | . . . . . Parts Built . | . . . . . Authchips . | . . . . . Time . | . . . . . Total Part Build Rating . | . . . . . Parts Repaired . | . . . . . Time . | . . . . . Parts Recycled . | . . . . . Recycled Matter . | . . . . . Retrieved Matter . | . . . . . Retrieved Components . | . . . . . Parts Scanalyzed . | . . . . . Part Schematics Acquired . | . . . . . Parts Damaged . | . . . . . Bothacking | -11 -10 -9 -8 -8 ------------ Run | Yrd Mat Mat Mat Sto Used RIF Installer . | . . . . . Robots Hacked . | . . . . . Non-combat . | . . . . . Combat . | . . . . . Robot Hacks Applied . | . . . . . Relay Couplers Released . | . . . . . Fabnet Peak Effective % . | . . . . . Robots Rewired . | . . . . . Allies Hacked . | . . . . . Hacks Repelled . | . . . . . Allies | -11 -10 -9 -8 -8 -------- Run | Yrd Mat Mat Mat Sto Total Allies . | . . . . . Largest Group . | . . . . . Highest-Rated Group . | . . . . . Highest-Rated Ally . | . . . . . Total Orders . | . . . . . Ally Attacks . | . . . . . Total Damage . | . . . . . Kills . | . . . . . Allies Corrupted . | . . . . . Allies Melted . | . . . . . Intel | -11 -10 -9 -8 -8 ------- Run | Yrd Mat Mat Mat Sto Robot Analysis Total . | . . . . . Derelict Logs Recovered . | . . . . . Drone Launches . | . . . . . Drone Recoveries . | . . . . . Exploration | -11 -10 -9 -8 -8 ------------- Run | Yrd Mat Mat Mat Sto Turns Passed 2084 | 64 652 548 386 434 Spaces Moved 969 | 49 354 253 137 176 Core 84 | 26 . . 6 52 Treads 539 | 23 354 38 . 124 Legs 346 | . . 215 131 . Wheels . | . . . . . Hover . | . . . . . Flight . | . . . . . Fastest Speed 50 | 50 160 120 100 50 Average Speed 172 | 101 160 183 194 184 Slowest Speed 450 | 160 160 190 450 400 Overloaded Moves . | . . . . . Propulsion Burnouts . | . . . . . Robots Hopped . | . . . . . Cave-ins Triggered . | . . . . . Exploration Rate (%) 28 | 4 62 34 14 26 Regions Visited 4 Branch Regions 1 Pre-discovered Areas . | . . . . . Known Exits Taken . | . . . . . Unknown Exits Taken 4 | 1 1 1 1 . Scrap Searched . | . . . . . Spaces Dug . | . . . . . Terrain Destroyed 166 | . 41 75 38 12 Melee . | . . . . . Projectile . | . . . . . AOE 166 | . 41 75 38 12 Terrain Rammed . | . . . . . Walls Destroyed . | . . . . . Machines Disabled . | . . . . . Actions | -11 -10 -9 -8 -8 --------- Run | Yrd Mat Mat Mat Sto Total 1219 | 63 395 301 199 261 Wait 40 | . 4 . 5 31 Move 965 | 48 353 252 136 176 Hop . | . . . . . Pick Up 43 | 9 7 7 7 13 Fast Attach 9 | 1 2 . . 6 Attach 38 | 5 3 5 12 13 Detach 6 | . . . 1 5 Swap 10 | . 1 6 3 . Drop 14 | . . 6 5 3 Fire 81 | . 25 25 17 14 Melee . | . . . . . Ram . | . . . . . Kick 13 | . . . 13 . Crush . | . . . . . Escape Stasis . | . . . . . Rewire . | . . . . . Trap . | . . . . . Miscellaneous . | . . . . . Route ------- -11/Scrapyard -10/Materials (discovered 4 exits: *Mat x2 / [*Min x2]) -9/Materials -8/Materials -8/Storage History --------- Turn | Location | Event 7 | -11/Scrapyard | Discovered new exit (range 15) 65 | -11/Scrapyard | Entered Materials 175 | -10/Materials | Discovered new exit (range 16) 306 | -10/Materials | Discovered new exit (range 16) 312 | -10/Materials | Build established: Mutant 634 | -10/Materials | Discovered new exit (range 11) 684 | -10/Materials | Discovered new exit (range 16) 717 | -10/Materials | Entered another Materials area 717 | -9/Materials | Evolved 2 slots: Power x1, Utility x1 1068 | -9/Materials | Destroyed 8 combat bots 1123 | -9/Materials | Discovered new exit (range 12) 1265 | -9/Materials | Entered another Materials area 1265 | -8/Materials | Evolved 2 slots: Weapon x2 1581 | -8/Materials | Build established: Tank 1618 | -8/Materials | Discovered new exit (range 10) 1630 | -8/Materials | Core integrity fell below 50% 1651 | -8/Materials | Entered Storage 1682 | -8/Storage | Lost 14 parts (4p1n3u6w) 1775 | -8/Storage | Core integrity fell below 20% 1810 | -8/Storage | System corruption reached 10% 1975 | -8/Storage | System corruption reached 30% 2085 | -8/Storage | Destroyed by G-47 Trooper with Particle Gun Last Messages --------------- Hvy. Particle Gun temporarily disabled. Imp. Heat Sink temporarily disabled. U-05 Engineer lays Concrete. Acquired Corrupted Hvy. Particle Gun. Integrated Corrupted Hvy. Particle Gun (+4). U-05 Engineer builds a Wall. U-05 Engineer lays Concrete. System corrupted: Energy discharge (-43). U-05 Engineer lays Concrete. System corrupted: Component data lost. Acquired 19 matter. U-05 Engineer lays Concrete. Acquired 13 matter. U-05 Engineer lays Concrete. K-01 Serf cleans the Terminal. U-05 Engineer lays Concrete. K-01 Serf cleans the Terminal. U-05 Engineer lays Concrete. K-01 Serf cleans the Terminal. U-05 Engineer lays Concrete. Map ----- +----------------------------------------------------+ | ???????????????????????????????????????????# | | ???????????????????????????????????????????# # | | ???????????????????????????????????????????## ## | | ????????????????????????????????????????????# ## | | ????????????????????????????????????????????# ## | | ????????????????????????????????????????????# ## | | ??????????????????????????????###???????????# ## | | ??????????????????????????????# ??????????# ## | | ??????????????????????????????# ??????????# ## | | ??????????????????????????????# ?????????# ## | | ??????????????????????????????# ########## + | | ??????????????????????????????# " ## | | ???????????????????????????????????# !#########? | | ???????????????????????#???????????# [ ########?? | | ???????????????????????#k??????????# + #?? | | ???????????????????????# ??????????# =[%#= #?? | | ??????????????????????"" ??????#####""# # """" #?? | | ???????????????????????T ??????# + + """" #?? | | ???????????????????????"k??????# # # """" #?? | | ???????????????????????#r??????# """ # # """" #?? | | ???????????????????????# ??????# """ # #######??? | | ???????????????????????# ####### """ # #????????? | | ???????????????????????#gg ## # #????????? | | ???????????????????????# a ######### #????????? | | ???????????????????????# [ ###]##### #????????? | | ??????????????????????## @ = #????????? | | ???????????????? u #????????? | | ?????????????????########## ! #????????? | | ??????????????????????????## #########????????? | | ???????????????????????????#;;;##????????????????? | | ???????????????????????????#####?????????????????? | | ?????????????????????????????????????????????????? | | | | | | | | | | | | | | | | | | | | | | | | | | | | | | | | | | | | | +----------------------------------------------------+ Best States ------------- Heat Dissipation 45 Energy Generation 15 Energy Capacity 400 Matter Stores 400 Matter Capacity 400 Sight Range 16 Terrain Scan Density 10 Base Temperature (-) 100 Armor Coverage 150 Evasion (%) 50 Recoil Reduction 2 Item Schematics ----------------- None Robot Schematics ------------------ None Fabricated ------------ Nothing Alien Tech Used ----------------- None Achievements -------------- Let's See Who's Tougher System Compromised Challenges ------------ None Game ------ Seed LobotomyIntegratedRail Manual? 0 Play Time 00:23:15 Cumulative 3.2 hours Start 2024.04.01 @ 20:18:49 End 2024.04.01 @ 20:40:33 Sessions 1 Manual Loads 0 Difficulty Rogue Special Mode None Game No. 7 Rogue 7 Adventurer 0 Explorer 0 Win Type - Total 0 Types 0/0/0/0/0/0/0/0/0 Lore% 9 Gallery% 7 Achievement% 9 Wizard Run 0 Options --------- Layout 1 ASCII 0 Keyboard 0 Movement Mouse Keybinds 0 Fullscreen 1 Font 32/SmallcapsGlow Map View 50x35 Zoom Use 0% Tactical HUD 0 Map Filters NONE Filters NONE Steam 1 RUN: 94a1175f-c75a-432e-a3da-656fbed692e3